fUST/lending_fUST_20250206
["ID","MTS","AMOUNT","RATE_DAILY","PERIOD"]
[351767537,1738781449406,-500.0,0.00014626,2]
[351767539,1738781449415,-931.14,0.00014626,2]
[351767541,1738781449424,-500.0,0.00014626,2]
[351767543,1738781449438,-544.53,0.00014626,2]
[351767545,1738781449448,-500.0,0.00014626,2]
[351767547,1738781449458,-500.0,0.00014626,2]
[351767549,1738781449467,-188.0,0.00014626,2]
[351767551,1738781449476,-500.0,0.00014626,2]
[351767553,1738781449485,-460.53401954,0.00014626,2]
[351767555,1738781449496,-500.0,0.00014626,2]
[351767557,1738781449506,-500.0,0.00014626,2]
[351767559,1738781449515,-500.0,0.00014626,2]
[351767561,1738781449525,-1257.42,0.00014626,2]
[351767563,1738781449535,-500.0,0.00014626,2]
[351767565,1738781449548,-500.0,0.00014626,2]
[351767567,1738781449557,-500.0,0.00014626,2]
[351767569,1738781449566,-500.0,0.00014626,2]
[351767571,1738781449576,-500.0,0.00014626,2]
[351767572,1738781449587,-500.0,0.00014626,2]
[351767573,1738781449596,-749.42,0.00014626,2]
[351767574,1738781449722,-151.0,0.00014626,2]
[351767575,1738781449732,-500.0,0.00014626,2]
[351767576,1738781449742,-500.0,0.00014626,2]
[351767578,1738781449752,-500.0,0.00014626,2]
[351767580,1738781449761,-4056.8,0.00014626,2]
[351767582,1738781449771,-700.17,0.00014626,2]
[351767584,1738781449780,-500.0,0.00014626,2]
[351767586,1738781449789,-500.0,0.00014626,2]
[351767588,1738781449800,-500.0,0.00014626,2]
[351767590,1738781449809,-500.0,0.00014626,2]
[351767592,1738781449819,-4236.29,0.00014626,2]
[351767594,1738781449828,-501.11742664,0.00014626,2]
[351767596,1738781449837,-525.2733232,0.00014626,2]
[351767598,1738781449846,-300.0,0.00014626,2]
[351767600,1738781449856,-151.0,0.00014626,2]
[351767602,1738781449866,-505.35338084,0.00014626,2]
[351767604,1738781449876,-500.0,0.00014626,2]
[351767606,1738781449886,-580.11,0.00014626,2]
[351767608,1738781449896,-152.554602,0.00014626,2]
[351767610,1738781449905,-664.16,0.00014626,2]
[351767612,1738781449914,-365.384098,0.00014626,2]
[351767614,1738781449924,-500.0,0.00014626,2]
[351767616,1738781449933,-500.0,0.00014626,2]
[351767618,1738781449942,-365.384098,0.00014626,2]
[351767620,1738781449951,-151.0,0.00014626,2]
[351767622,1738781449960,-500.0,0.00014626,2]
[351767624,1738781449970,-500.0,0.00014626,2]
[351767626,1738781449979,-500.0,0.00014626,2]
[351767628,1738781449988,-987.74,0.00014626,2]
[351767630,1738781449998,-1486.18,0.00014626,2]
[351767632,1738781450008,-209.709451,0.00014626,2]
[351767634,1738781450018,-500.0,0.00014626,2]
[351767636,1738781450028,-439.00348576,0.00014626,2]
[351767638,1738781450038,-500.0,0.00014626,2]
[351767640,1738781450047,-818.55,0.00014626,2]
[351767642,1738781450056,-500.0,0.00014626,2]
[351767644,1738781450066,-500.0,0.00014626,2]
[351767646,1738781450075,-516.93897456,0.00014626,2]
[351767648,1738781450085,-1094.31,0.00014626,2]
[351767650,1738781450094,-500.0,0.00014626,2]
[351767652,1738781450103,-939.06,0.00014626,2]
[351767654,1738781450113,-542.45,0.00014626,2]
[351767656,1738781450122,-519.75081571,0.00014626,2]
[351767658,1738781450131,-500.0,0.00014626,2]
[351767660,1738781450140,-500.0,0.00014626,2]
[351767662,1738781450150,-690.32,0.00014626,2]
[351767664,1738781450159,-3936.23,0.00014626,2]
[351767666,1738781450168,-500.0,0.00014626,2]
[351767668,1738781450178,-500.0,0.00014626,2]
[351767670,1738781450187,-500.0,0.00014626,2]
[351767672,1738781450196,-500.0,0.00014626,2]
[351767673,1738781450205,-729.66,0.00014626,2]
[351767675,1738781450215,-1881.8,0.00014626,2]
[351767677,1738781450226,-500.0,0.00014626,2]
[351767680,1738781450236,-500.0,0.00014626,2]
[351767682,1738781450246,-1529.85,0.00014626,2]
[351767683,1738781450256,-1574.79,0.00014626,2]
[351767685,1738781450265,-936.74,0.00014626,2]
[351767687,1738781450275,-1124.81,0.00014626,2]
[351767689,1738781450285,-500.0,0.00014626,2]
[351767691,1738781450294,-582.63,0.00014626,2]
[351767693,1738781450303,-500.0,0.00014626,2]
[351767695,1738781450312,-163.703266,0.00014626,2]
[351767697,1738781450321,-163.703266,0.00014626,2]
[351767699,1738781450330,-500.0,0.00014626,2]
[351767701,1738781450340,-1000.0,0.00014626,2]
[351767703,1738781450349,-500.0,0.00014626,2]
[351767705,1738781450358,-500.0,0.00014626,2]
[351767707,1738781450367,-959.56,0.00014626,2]
[351767709,1738781450376,-500.0,0.00014626,2]
[351767711,1738781450386,-666.5,0.00014626,2]
[351767713,1738781450395,-500.0,0.00014626,2]
[351767715,1738781450404,-500.0,0.00014626,2]
[351767717,1738781450413,-241.832142,0.00014626,2]
[351767719,1738781450423,-500.0,0.00014626,2]
[351767721,1738781450432,-241.832142,0.00014626,2]
[351767723,1738781450442,-500.0,0.00014626,2]
[351767725,1738781450451,-500.0,0.00014626,2]
[351767726,1738781450460,-514.93,0.00014626,2]
[351767728,1738781450470,-500.0,0.00014626,2]
[351767730,1738781450479,-500.0,0.00014626,2]
[351767732,1738781450489,-687.48,0.00014626,2]
[351767735,1738781450499,-151.0,0.00014626,2]
[351767736,1738781450508,-500.0,0.00014626,2]
[351767738,1738781450517,-360.98701392,0.00014626,2]
[351767741,1738781450527,-500.0,0.00014626,2]
[351767742,1738781450537,-676.11,0.00014626,2]
[351767744,1738781450550,-500.0,0.00014626,2]
[351767747,1738781450559,-204.98644075,0.00014626,2]
[351767748,1738781450569,-2003.06,0.00014626,2]
[351767751,1738781450579,-500.0,0.00014626,2]
[351767753,1738781450588,-917.06,0.00014626,2]
[351767755,1738781450598,-500.0,0.00014626,2]
[351767757,1738781450608,-559.73,0.00014626,2]
[351767759,1738781450619,-500.0,0.00014626,2]
[351767761,1738781450628,-1333.12,0.00014626,2]
[351767762,1738781450638,-254.98983613,0.00014626,2]
[351767812,1738781451136,-500.0,0.00014486,2]
[351767814,1738781451147,-141.95906414,0.00014487,2]
[351767859,1738781452021,-294.8,0.00014486,2]
[351767896,1738781452472,-24.13423639,0.00014486,2]
[351767897,1738781452488,-500.0,0.00014486,2]
[351767898,1738781452504,-500.0,0.00014486,2]
[351767899,1738781452523,-522.57205395,0.00014486,2]
[351767900,1738781452540,-358.04093586,0.00014487,2]
[351767901,1738781452555,-500.0,0.00014487,2]
[351767902,1738781452573,-500.0,0.00014489,2]
[351767903,1738781452588,-578.61075515,0.00014489,2]
[351767904,1738781452602,-144.09206865,0.00014623,2]
[351767905,1738781452661,-360.53905249,0.00014623,2]
[351767906,1738781452675,-337.98,0.00014623,2]
[351767907,1738781452689,-202.43,0.00014623,2]
[351767908,1738781452702,-500.0,0.00014624,2]
[351767909,1738781452715,-417.50316715,0.00014624,2]
[351767910,1738781452729,-245.01016387,0.00014626,2]
[351767911,1738781452743,-553.95369155,0.00014626,2]
[351767912,1738781452757,-500.0,0.00014626,2]
[351767913,1738781452773,-500.0,0.00014626,2]
[351767914,1738781452788,-335.01105814,0.00014626,2]
[351767915,1738781452804,-976.45,0.00014626,2]
[351767916,1738781452819,-542.27,0.00014626,2]
[351767917,1738781452833,-500.0,0.00014626,2]
[351767918,1738781452846,-478.42018004,0.00014626,2]
[351767919,1738781452860,-964.47,0.00014626,2]
[351767920,1738781452873,-500.0,0.00014626,2]
[351767921,1738781452887,-500.0,0.00014626,2]
[351767922,1738781452902,-500.0,0.00014626,2]
[351767923,1738781452915,-500.0,0.00014626,2]
[351767924,1738781452929,-500.0,0.00014626,2]
[351767925,1738781452942,-928.27,0.00014626,2]
[351767926,1738781452955,-500.0,0.00014626,2]
[351767927,1738781452968,-3974.21,0.00014626,2]
[351767928,1738781452982,-500.0,0.00014626,2]
[351767929,1738781452996,-500.0,0.00014626,2]
[351767930,1738781453008,-1220.28,0.00014626,2]
[351767931,1738781453022,-553.88,0.00014626,2]
[351767932,1738781453035,-500.0,0.00014626,2]
[351767933,1738781453049,-151.0,0.00014628,2]
[351767934,1738781453062,-151.0,0.00014628,2]
[351767935,1738781453076,-151.0,0.00014628,2]
[351767936,1738781453089,-151.0,0.00014628,2]
[351767937,1738781453103,-151.0,0.00014628,2]
[351767938,1738781453116,-151.0,0.00014629,2]
[351767939,1738781453130,-156.871716,0.00014629,2]
[351767940,1738781453142,-500.0,0.00014629,2]
[351767941,1738781453155,-500.0,0.00014629,2]
[351767942,1738781453168,-151.0,0.00014629,2]
[351767943,1738781453181,-151.0,0.00014629,2]
[351767944,1738781453194,-161.97033307,0.0001466,2]
[351767945,1738781453207,-161.97033307,0.0001466,2]
[351767946,1738781453220,-161.97033307,0.0001466,2]
[351767947,1738781453234,-161.97033307,0.0001466,2]
[351767948,1738781453243,-161.97033307,0.0001466,2]
[351767949,1738781453253,-161.97033307,0.0001466,2]
[351767950,1738781453263,-161.97033307,0.0001466,2]
[351767951,1738781453272,-161.97033307,0.0001466,2]
[351767952,1738781453282,-161.97033307,0.0001466,2]
[351767953,1738781453292,-161.97033307,0.0001466,2]
[351767954,1738781453303,-161.97033307,0.0001466,2]
[351767955,1738781453313,-161.97,0.0001466,2]
[351767956,1738781453322,-500.0,0.00014673,2]
[351767957,1738781453332,-400.80753299,0.00014673,2]
[351767958,1738781453345,-99.19246701,0.00014673,2]
[351767959,1738781453355,-579.7341961,0.00014673,2]
[351767960,1738781453365,-288.67333689,0.00014673,2]
[351767961,1738781453378,-211.32666311,0.00014673,2]
[351767962,1738781453388,-161.87873048,0.00014673,2]
[351767963,1738781453398,-500.0,0.00014673,2]
[351767964,1738781453408,-154.5151656,0.000147,2]
[351767965,1738781453417,-308.7288517,0.000147,2]
[351767966,1738781453427,-500.0,0.00014759,2]
[351767967,1738781453436,-5950.96,0.00014759,2]
[351767968,1738781453447,-2130.36,0.00014759,2]
[351767969,1738781453457,-1319.46,0.00014759,2]
[351767970,1738781453467,-1015.29,0.00014759,2]
[351767971,1738781453476,-500.0,0.00014759,2]
[351767972,1738781453486,-1036.84,0.00014759,2]
[351767973,1738781453496,-500.0,0.00014759,2]
[351767974,1738781453781,-500.0,0.00014759,2]
[351767975,1738781453806,-663.44,0.00014759,2]
[351767976,1738781453822,-697.01,0.0001476,2]
[351767977,1738781453832,-500.0,0.0001476,2]
[351767978,1738781453843,-500.0,0.0001476,2]
[351767979,1738781453854,-500.0,0.0001476,2]
[351767980,1738781453865,-500.0,0.0001476,2]
[351767981,1738781453875,-500.0,0.0001476,2]
[351767982,1738781453884,-500.0,0.0001476,2]
[351767983,1738781453895,-500.0,0.0001476,2]
[351767984,1738781453906,-500.0,0.0001476,2]
[351767985,1738781453916,-500.0,0.0001476,2]
[351767986,1738781453926,-643.87,0.0001476,2]
[351767987,1738781453936,-500.0,0.0001476,2]
[351767988,1738781453945,-500.0,0.0001476,2]
[351767989,1738781453954,-610.21,0.0001476,2]
[351767990,1738781453964,-536.88,0.0001476,2]
[351767991,1738781453974,-500.0,0.0001476,2]
[351767992,1738781453984,-500.0,0.0001476,2]
[351767993,1738781453993,-500.0,0.0001476,2]
[351767994,1738781454002,-500.0,0.0001476,2]
[351767995,1738781454012,-500.0,0.0001476,2]
[351767996,1738781454021,-14367.34,0.0001476,2]
[351767997,1738781454030,-500.0,0.0001476,2]
[351767998,1738781454041,-500.0,0.0001476,2]
[351767999,1738781454052,-5560.59,0.0001476,2]
[351768000,1738781454062,-255.08512033,0.0001476,2]
[351768001,1738781454071,-500.0,0.0001476,2]
[351768002,1738781454080,-500.0,0.0001476,2]
[351768003,1738781454090,-3140.4,0.0001476,2]
[351768004,1738781454100,-500.0,0.0001476,2]
[351768005,1738781454110,-7111.68,0.0001476,2]
[351768006,1738781454119,-2642.92,0.0001476,2]
[351768007,1738781454129,-500.0,0.0001476,2]
[351768008,1738781454138,-689.68,0.0001476,2]
[351768009,1738781454147,-500.0,0.0001476,2]
[351768010,1738781454156,-500.0,0.0001476,2]
[351768011,1738781454166,-500.0,0.0001476,2]
[351768012,1738781454175,-1053.48,0.0001476,2]
[351768013,1738781454184,-1085.03,0.0001476,2]
[351768014,1738781454194,-500.0,0.0001476,2]
[351768015,1738781454204,-500.0,0.0001476,2]
[351768016,1738781454213,-500.0,0.0001476,2]
[351768017,1738781454223,-500.0,0.0001476,2]
[351768018,1738781454232,-500.0,0.0001476,2]
[351768019,1738781454241,-500.0,0.0001476,2]
[351768020,1738781454250,-1479.32748451,0.0001476,2]
[351768030,1738782079419,3212.7564647,0.00013592,2]
[351768032,1738782186117,335.874885,0.00013973,2]
[351768049,1738782632450,-500.0,0.00014164,2]
[351768051,1738782632460,-198.30286316,0.00014377,2]
[351768053,1738782632470,-300.0,0.00014398,2]
[351768055,1738782632480,-500.0,0.00014398,2]
[351768057,1738782632490,-508.90202279,0.00014398,2]
[351768059,1738782632499,-500.0,0.00014398,2]
[351768060,1738782632512,-677.47,0.00014399,2]
[351768063,1738782632522,-500.0,0.00014399,2]
[351768065,1738782632531,-6772.21617013,0.00014399,2]
[351768068,1738782632558,-1048.60382987,0.00014399,2]
[351768070,1738782632568,-1050.91,0.00014399,2]
[351768072,1738782632577,-1050.91,0.00014399,2]
[351768074,1738782632587,-1050.91,0.00014399,2]
[351768076,1738782632597,-740.42103872,0.00014399,2]
[351768078,1738782632610,-310.48896128,0.00014399,2]
[351768080,1738782632620,-1050.91,0.00014399,2]
[351768083,1738782632630,-1050.91,0.00014399,2]
[351768085,1738782632640,-631.88,0.00014399,2]
[351768087,1738782632650,-500.0,0.00014399,2]
[351768089,1738782632660,-559.36,0.00014399,2]
[351768091,1738782632670,-500.0,0.00014399,2]
[351768093,1738782632680,-500.0,0.00014399,2]
[351768095,1738782632690,-5368.07,0.00014399,2]
[351768097,1738782632699,-500.0,0.00014399,2]
[351768099,1738782632709,-3030.39,0.00014399,2]
[351768101,1738782632719,-13862.88,0.00014399,2]
[351768103,1738782632728,-2574.47,0.00014399,2]
[351768105,1738782632738,-558.47,0.00014399,2]
[351768107,1738782632748,-507.93641846,0.00014399,2]
[351768109,1738782632760,-500.0,0.00014399,2]
[351768111,1738782632770,-1051.25,0.00014399,2]
[351768113,1738782632779,-500.0,0.00014399,2]
[351768115,1738782632788,-5494.71,0.00014399,2]
[351768117,1738782632798,-500.0,0.00014399,2]
[351768119,1738782632807,-768.96,0.00014399,2]
[351768121,1738782632816,-6936.46,0.00014399,2]
[351768122,1738782632826,-500.0,0.00014399,2]
[351768124,1738782632835,-500.0,0.00014399,2]
[351768127,1738782632845,-500.0,0.00014399,2]
[351768128,1738782632855,-500.0,0.00014399,2]
[351768131,1738782632864,-500.0,0.00014399,2]
[351768133,1738782632874,-500.0,0.00014399,2]
[351768135,1738782632883,-1973.67,0.00014399,2]
[351768137,1738782632892,-2795.66,0.00014399,2]
[351768139,1738782632902,-500.0,0.00014399,2]
[351768141,1738782632911,-500.0,0.00014399,2]
[351768143,1738782632921,-7054.0,0.00014399,2]
[351768145,1738782632931,-500.0,0.00014399,2]
[351768166,1738782633140,-1081.49,0.00014399,2]
[351768168,1738782633151,-12159.71,0.00014399,2]
[351768170,1738782633162,-500.0,0.00014399,2]
[351768172,1738782633172,-972.35,0.00014399,2]
[351768174,1738782633183,-500.0,0.00014399,2]
[351768176,1738782633193,-500.0,0.00014399,2]
[351768178,1738782633205,-3065.8,0.00014399,2]
[351768180,1738782633215,-580.41,0.00014399,2]
[351768182,1738782633225,-919.05,0.00014399,2]
[351768184,1738782633235,-685.61,0.00014399,2]
[351768186,1738782633246,-500.0,0.00014399,2]
[351768188,1738782633259,-2800.06,0.00014399,2]
[351768190,1738782633271,-120758.533076,0.000144,2]
[351768192,1738782633282,-249.89,0.00014436,2]
[351768194,1738782633292,-170.71473635,0.00014476,2]
[351768196,1738782633302,-627.59,0.00014482,2]
[351768198,1738782633312,-1050.91,0.00014482,2]
[351768200,1738782633322,-1050.91,0.00014482,2]
[351768202,1738782633333,-1050.91,0.00014482,2]
[351768205,1738782633343,-1050.91,0.00014482,2]
[351768207,1738782633353,-500.0,0.00014482,2]
[351768209,1738782633363,-500.0,0.00014482,2]
[351768211,1738782633373,-500.0,0.00014482,2]
[351768213,1738782633382,-500.0,0.00014482,2]
[351768215,1738782633392,-680.6,0.00014483,2]
[351768216,1738782633401,-500.0,0.00014483,2]
[351768218,1738782633411,-500.0,0.00014483,2]
[351768220,1738782633420,-500.0,0.00014483,2]
[351768222,1738782633431,-505.20762032,0.00014483,2]
[351768225,1738782633441,-500.0,0.00014483,2]
[351768226,1738782633450,-500.0,0.00014483,2]
[351768228,1738782633460,-500.0,0.00014483,2]
[351768230,1738782633469,-500.0,0.00014483,2]
[351768232,1738782633479,-500.0,0.00014483,2]
[351768234,1738782633490,-199.16552161,0.00014483,2]
[351768236,1738782633502,-1047.32,0.00014483,2]
[351768238,1738782633512,-500.0,0.00014483,2]
[351768240,1738782633521,-438.81142038,0.00014483,2]
[351768242,1738782633532,-500.0,0.00014483,2]
[351768245,1738782633542,-500.0,0.00014483,2]
[351768246,1738782633552,-500.0,0.00014483,2]
[351768249,1738782633561,-500.0,0.00014483,2]
[351768250,1738782633571,-500.0,0.00014483,2]
[351768252,1738782633581,-500.0,0.00014483,2]
[351768255,1738782633592,-500.0,0.00014483,2]
[351768257,1738782633603,-2739.3,0.00014483,2]
[351768259,1738782633613,-500.0,0.00014483,2]
[351768261,1738782633623,-585.00727531,0.00014483,2]
[351768263,1738782633633,-500.0,0.00014483,2]
[351768265,1738782633642,-508.0579383,0.00014483,2]
[351768267,1738782633653,-500.0,0.00014483,2]
[351768269,1738782633662,-502.45800102,0.00014483,2]
[351768271,1738782633673,-500.0,0.00014483,2]
[351768273,1738782633683,-500.0,0.00014483,2]
[351768275,1738782633693,-500.0,0.00014483,2]
[351768277,1738782633703,-500.0,0.00014483,2]
[351768279,1738782633713,-500.0,0.00014483,2]
[351768281,1738782633723,-500.0,0.00014483,2]
[351768283,1738782633734,-500.0,0.00014483,2]
[351768285,1738782633744,-500.0,0.00014483,2]
[351768287,1738782633755,-536.4,0.00014483,2]
[351768289,1738782633766,-500.0,0.00014483,2]
[351768291,1738782633776,-500.0,0.00014483,2]
[351768293,1738782633786,-512.29128053,0.00014483,2]
[351768295,1738782633797,-500.0,0.00014483,2]
[351768297,1738782633807,-500.0,0.00014483,2]
[351768299,1738782633816,-500.0,0.00014483,2]
[351768301,1738782633826,-2050.54,0.00014483,2]
[351768303,1738782633835,-500.0,0.00014483,2]
[351768305,1738782633846,-500.0,0.00014483,2]
[351768307,1738782633855,-500.0,0.00014483,2]
[351768309,1738782633865,-503.73,0.00014483,2]
[351768311,1738782633877,-500.0,0.00014483,2]
[351768313,1738782633887,-941.85,0.00014483,2]
[351768315,1738782633896,-500.0,0.00014483,2]
[351768317,1738782633906,-500.0,0.00014483,2]
[351768319,1738782633916,-500.0,0.00014483,2]
[351768321,1738782633925,-1007.14,0.00014483,2]
[351768323,1738782633937,-500.0,0.00014483,2]
[351768325,1738782633949,-533.81,0.00014483,2]
[351768327,1738782633959,-427.26802878,0.00014483,2]
[351768329,1738782633969,-500.0,0.00014483,2]
[351768331,1738782633980,-1389.66,0.00014483,2]
[351768333,1738782633990,-500.0,0.00014483,2]
[351768335,1738782634000,-500.0,0.00014483,2]
[351768337,1738782634011,-500.0,0.00014483,2]
[351768339,1738782634020,-500.0,0.00014483,2]
[351768341,1738782634031,-530.18946337,0.00014483,2]
[351768343,1738782634041,-500.0,0.00014483,2]
[351768345,1738782634051,-855.46,0.00014483,2]
[351768347,1738782634060,-855.46,0.00014483,2]
[351768349,1738782634070,-855.46,0.00014483,2]
[351768351,1738782634080,-855.46,0.00014483,2]
[351768353,1738782634090,-500.0,0.00014483,2]
[351768355,1738782634099,-500.0,0.00014483,2]
[351768357,1738782634109,-2576.63,0.00014483,2]
[351768359,1738782634119,-336.8415455,0.00014483,2]
[351768361,1738782634130,-500.0,0.00014483,2]
[351768363,1738782634139,-500.0,0.00014483,2]
[351768365,1738782634149,-1014.65,0.00014483,2]
[351768367,1738782634159,-500.0,0.00014483,2]
[351768369,1738782634169,-641.36,0.00014483,2]
[351768371,1738782634179,-500.0,0.00014483,2]
[351768373,1738782634189,-500.0,0.00014483,2]
[351768375,1738782634199,-500.0,0.00014483,2]
[351768377,1738782634209,-501.47660146,0.00014483,2]
[351768379,1738782634220,-702.61,0.00014483,2]
[351768381,1738782634230,-1727.46,0.00014483,2]
[351768383,1738782634240,-527.87139466,0.00014483,2]
[351768385,1738782634251,-500.0,0.00014483,2]
[351768387,1738782634262,-500.0,0.00014483,2]
[351768389,1738782634272,-500.0,0.00014483,2]
[351768391,1738782634282,-500.0,0.00014483,2]
[351768393,1738782634292,-1568.18,0.00014483,2]
[351768395,1738782634303,-500.0,0.00014483,2]
[351768397,1738782634315,-500.0,0.00014483,2]
[351768399,1738782634326,-500.0,0.00014483,2]
[351768401,1738782634336,-500.0,0.00014483,2]
[351768403,1738782634345,-500.0,0.00014483,2]
[351768405,1738782634355,-775.96,0.00014483,2]
[351768407,1738782634365,-500.0,0.00014483,2]
[351768409,1738782634377,-1677.13,0.00014483,2]
[351768411,1738782634387,-500.0,0.00014483,2]
[351768413,1738782634398,-879.06,0.00014483,2]
[351768415,1738782634408,-500.0,0.00014483,2]
[351768417,1738782634418,-500.0,0.00014483,2]
[351768419,1738782634428,-1956.72,0.00014483,2]
[351768421,1738782634438,-500.0,0.00014483,2]
[351768423,1738782634448,-500.0,0.00014483,2]
[351768425,1738782634459,-500.0,0.00014483,2]
[351768427,1738782634468,-1495.36,0.00014483,2]
[351768430,1738782634479,-500.0,0.00014483,2]
[351768431,1738782634489,-705.83,0.00014483,2]
[351768433,1738782634500,-500.0,0.00014483,2]
[351768436,1738782634513,-500.0,0.00014483,2]
[351768438,1738782634523,-534.65,0.00014483,2]
[351768440,1738782634532,-500.0,0.00014483,2]
[351768442,1738782634543,-500.0,0.00014483,2]
[351768444,1738782634553,-500.0,0.00014483,2]
[351768446,1738782634563,-500.0,0.00014483,2]
[351768448,1738782634572,-500.0,0.00014483,2]
[351768450,1738782634582,-500.0,0.00014483,2]
[351768452,1738782634591,-500.0,0.00014483,2]
[351768454,1738782634601,-500.0,0.00014483,2]
[351768456,1738782634610,-500.0,0.00014483,2]
[351768458,1738782634619,-644.91043256,0.00014483,2]
[351768460,1738782634629,-500.0,0.00014483,2]
[351768462,1738782634639,-500.0,0.00014483,2]
[351768464,1738782634648,-617.64,0.00014483,2]
[351768466,1738782634658,-500.0,0.00014483,2]
[351768468,1738782634667,-500.0,0.00014483,2]
[351768470,1738782634676,-1007.56,0.00014483,2]
[351768472,1738782634687,-500.0,0.00014483,2]
[351768474,1738782634696,-500.0,0.00014483,2]
[351768476,1738782634707,-1163.32,0.00014483,2]
[351768478,1738782634721,-500.0,0.00014483,2]
[351768480,1738782634731,-1926.31,0.00014483,2]
[351768482,1738782634740,-500.0,0.00014483,2]
[351768484,1738782634750,-2479.64,0.00014483,2]
[351768486,1738782634760,-500.0,0.00014483,2]
[351768488,1738782634769,-500.0,0.00014483,2]
[351768489,1738782634779,-500.0,0.00014483,2]
[351768490,1738782634788,-500.0,0.00014483,2]
[351768491,1738782634798,-680.67,0.00014483,2]
[351768492,1738782634807,-500.0,0.00014483,2]
[351768493,1738782634816,-425.8837088,0.00014483,2]
[351768494,1738782634826,-500.0,0.00014483,2]
[351768495,1738782634835,-685.07,0.00014483,2]
[351768496,1738782634844,-508.88796431,0.00014483,2]
[351768497,1738782634853,-912.47,0.00014483,2]
[351768498,1738782634862,-500.0,0.00014483,2]
[351768499,1738782634872,-768.15,0.00014483,2]
[351768500,1738782634881,-643.89,0.00014483,2]
[351768501,1738782634890,-500.0,0.00014483,2]
[351768502,1738782634899,-500.0,0.00014483,2]
[351768503,1738782634909,-500.0,0.00014483,2]
[351768504,1738782634918,-500.0,0.00014483,2]
[351768505,1738782634927,-500.87043282,0.00014483,2]
[351768506,1738782634938,-500.0,0.00014483,2]
[351768507,1738782634950,-509.39038919,0.00014483,2]
[351768508,1738782634959,-2717.97,0.00014483,2]
[351768509,1738782634968,-500.0,0.00014483,2]
[351768510,1738782634979,-1320.44,0.00014483,2]
[351768511,1738782634990,-8462.44,0.00014483,2]
[351768512,1738782634999,-500.0,0.00014483,2]
[351768514,1738782635009,-500.0,0.00014483,2]
[351768516,1738782635019,-500.0,0.00014483,2]
[351768518,1738782635029,-500.0,0.00014483,2]
[351768520,1738782635039,-182.10862314,0.00014483,2]
[351768522,1738782635048,-500.0,0.00014483,2]
[351768524,1738782635058,-539.51519386,0.00014483,2]
[351768526,1738782635068,-500.0,0.00014483,2]
[351768528,1738782635077,-560.07,0.00014483,2]
[351768530,1738782635087,-500.0,0.00014483,2]
[351768532,1738782635096,-589.25,0.00014483,2]
[351768534,1738782635106,-587.70241378,0.00014483,2]
[351768536,1738782635115,-4304.79,0.00014483,2]
[351768538,1738782635125,-500.0,0.00014483,2]
[351768540,1738782635134,-500.0,0.00014483,2]
[351768542,1738782635143,-500.0,0.00014483,2]
[351768544,1738782635153,-2960.63,0.00014483,2]
[351768546,1738782635163,-500.0,0.00014483,2]
[351768548,1738782635173,-500.0,0.00014483,2]
[351768550,1738782635183,-500.0,0.00014483,2]
[351768552,1738782635192,-500.0,0.00014483,2]